bitfinex-derivatives/quotes_BTCF0:USTF0_20250222
["timestamp","ask_amount","ask_price","bid_price","bid_amount"]
[1740214453831,0.00015583,96248.0,96247.0,0.572636]
[1740214455538,0.01015583,96248.0,96247.0,0.572636]
[1740214456039,0.00015583,96248.0,96247.0,0.572636]
[1740214456336,0.01015583,96248.0,96247.0,0.572636]
[1740214457243,0.00015583,96248.0,96247.0,0.572636]
[1740214458235,0.01015583,96248.0,96247.0,0.572636]
[1740214459653,0.00015583,96248.0,96247.0,0.572636]
[1740214459846,0.01015583,96248.0,96247.0,0.572636]
[1740214461543,0.01015583,96248.0,96247.0,0.211836]
[1740214461762,0.01015583,96248.0,96247.0,0.572636]
[1740214474456,1e-08,96249.0,96248.0,0.2078339]
[1740214475550,1e-08,96249.0,96248.0,0.2098339]
[1740214475947,1e-08,96249.0,96248.0,0.2118339]
[1740214476148,0.0561,96256.0,96248.0,0.004]
[1740214476355,0.0561,96256.0,96255.0,0.5686188]
[1740214476556,0.0661,96256.0,96255.0,0.5686188]
[1740214476758,0.0561,96256.0,96255.0,0.5686188]
[1740214476949,0.0561,96256.0,96255.0,0.6289188]
[1740214477456,0.0661,96256.0,96255.0,0.6289188]
[1740214478551,0.0661,96256.0,96255.0,0.6299188]
[1740214479559,0.0661,96256.0,96255.0,0.64029321]
[1740214481651,0.0561,96256.0,96255.0,0.64029321]
[1740214482361,0.00015583,96258.0,96257.0,0.2078144]
[1740214482755,0.0571,96266.0,96265.0,0.2077972]
[1740214483462,0.0671,96266.0,96265.0,0.2077972]
[1740214484159,0.0711,96266.0,96265.0,0.2077972]
[1740214484677,0.0741,96266.0,96265.0,0.2077972]
[1740214484978,0.281895,96266.0,96265.0,0.2077972]
[1740214502176,0.281895,96266.0,96265.0,0.2638972]
[1740214504884,0.2077993,96264.0,96263.0,0.18704768]
[1740214505082,0.5785993,96264.0,96263.0,0.18704768]
[1740214505480,0.3708,96264.0,96258.0,0.24937081]
[1740214505683,0.2697627,96259.0,96258.0,0.24937081]
[1740214505984,0.3693627,96259.0,96258.0,0.24937081]
[1740214506775,0.3703627,96259.0,96258.0,0.24937081]
[1740214508174,0.3703627,96259.0,96258.0,0.45718311]
[1740214508585,0.4255627,96259.0,96258.0,0.45718311]
[1740214508985,0.48577354,96259.0,96258.0,0.2078123]
[1740214509290,0.42057354,96259.0,96258.0,0.2078123]
[1740214509480,0.43057354,96259.0,96258.0,0.3205123]
[1740214509791,0.42057354,96259.0,96258.0,0.3205123]
[1740214510085,0.43057354,96259.0,96258.0,0.3205123]
[1740214510391,0.47717354,96259.0,96258.0,0.3205123]
[1740214510589,0.48717354,96259.0,96258.0,0.3205123]
[1740214510886,0.48717354,96259.0,96258.0,0.2656123]
[1740214512483,0.4269627,96259.0,96258.0,0.2656123]
[1740214515691,0.3703627,96259.0,96258.0,0.2656123]
[1740214516992,0.001,96259.0,96258.0,0.2656123]
[1740214517489,0.011,96259.0,96258.0,0.2656123]
[1740214517791,0.001,96259.0,96258.0,0.2656123]
[1740214518091,0.011,96259.0,96258.0,0.2656123]
[1740214521293,0.011,96259.0,96258.0,0.6264123]
[1740214526098,0.0519361,96290.0,96274.0,0.2077778]
[1740214526284,0.0519361,96290.0,96274.0,0.5685778]
[1740214526285,0.0996,96289.0,96274.0,0.5685778]
[1740214526490,0.0996,96289.0,96277.0,0.2077713]
[1740214526687,0.2077481,96288.0,96277.0,0.2077713]
[1740214526892,0.2077481,96288.0,96276.0,0.0519432]
[1740214526893,0.2175421,96282.0,96281.0,0.2077626]
[1740214527283,0.2275421,96282.0,96281.0,0.2077626]
[1740214527490,0.2175421,96282.0,96281.0,0.2077626]
[1740214527795,0.2275421,96282.0,96281.0,0.2077626]
[1740214528100,0.2175421,96282.0,96281.0,0.2077626]
[1740214528291,0.2275421,96282.0,96281.0,0.2077626]
[1740214529199,0.2345421,96282.0,96281.0,0.2077626]
[1740214529492,0.2345421,96282.0,96281.0,0.2655626]
[1740214529684,0.2345421,96282.0,96281.0,0.27581265]
[1740214530393,0.2415421,96282.0,96281.0,0.2655626]
[1740214530888,0.4493026,96282.0,96281.0,0.2655626]
[1740214531086,0.2317605,96282.0,96281.0,0.2655626]
[1740214531402,0.2217605,96282.0,96281.0,0.2655626]
[1740214531793,0.2317605,96282.0,96281.0,0.2655626]
[1740214532804,0.2747605,96282.0,96281.0,0.2655626]
[1740214537602,0.2747605,96282.0,96281.0,0.2077626]
[1740214547595,0.2077756,96275.0,96274.0,0.00136]
[1740214547802,0.2078037,96262.0,96261.0,0.5106684]
[1740214547999,0.2078037,96262.0,96261.0,0.250929]
[1740214548205,0.2078037,96262.0,96261.0,0.4587348]
[1740214548405,0.2078037,96262.0,96261.0,0.250929]
[1740214548604,0.2909037,96262.0,96261.0,0.250929]
[1740214549212,0.2929037,96262.0,96261.0,0.250929]
[1740214550007,0.3029037,96262.0,96261.0,0.4587348]
[1740214550916,0.2198037,96262.0,96261.0,0.20936399]
[1740214551111,0.2198037,96262.0,96261.0,0.25106399]
[1740214552599,0.2208037,96262.0,96261.0,0.25106399]
[1740214561512,0.2208037,96262.0,96261.0,0.04325819]
[1740214561913,0.2078144,96257.0,96256.0,0.00015583]
[1740214562113,0.2078144,96257.0,96244.0,0.3939563]
[1740214562114,0.2078404,96245.0,96244.0,0.3939563]
[1740214562325,0.2178404,96245.0,96244.0,0.0822]
[1740214562819,0.2578404,96245.0,96244.0,0.0822]
[1740214563033,0.2568404,96245.0,96244.0,0.0822]
[1740214563213,0.2568404,96245.0,96244.0,0.0852]
[1740214563524,0.2568404,96245.0,96244.0,0.003]
[1740214563726,0.3412404,96245.0,96244.0,0.003]
[1740214564729,0.3422404,96245.0,96244.0,0.004]
[1740214567622,0.011,96245.0,96244.0,0.2118425]
[1740214567819,0.10056,96245.0,96244.0,0.2118425]
[1740214568013,0.10056,96245.0,96244.0,0.2982425]
[1740214568526,0.001,96245.0,96244.0,0.2982425]
[1740214568727,0.011,96245.0,96244.0,0.2982425]
[1740214571222,0.2188404,96245.0,96244.0,0.2982425]
[1740214579929,0.2088404,96245.0,96244.0,0.2982425]
[1740214580131,0.2188404,96245.0,96244.0,0.2982425]
[1740214584233,0.011,96245.0,96244.0,0.2982425]
[1740214584634,0.2188404,96245.0,96244.0,0.2982425]
[1740214585229,0.011,96245.0,96244.0,0.2982425]
[1740214588131,0.001,96245.0,96244.0,0.2982425]
[1740214588833,0.18609815,96252.0,96251.0,0.2078274]
[1740214589037,0.28569815,96252.0,96251.0,0.2078274]
[1740214589948,0.29569815,96252.0,96251.0,0.2078274]
[1740214590344,0.29569815,96252.0,96251.0,0.2108274]
[1740214590644,0.28569815,96252.0,96251.0,0.2108274]
[1740214590844,0.29569815,96252.0,96251.0,0.2108274]
[1740214591042,0.1096,96252.0,96251.0,0.2108274]
[1740214591346,0.01,96252.0,96251.0,0.2108274]
[1740214591736,0.2078172,96256.0,96255.0,0.2078188]
[1740214591938,0.2178172,96256.0,96255.0,0.21831024]
[1740214592138,0.2178172,96256.0,96255.0,0.34451024]
[1740214593553,0.2178172,96256.0,96255.0,0.34551024]
[1740214594445,0.2078172,96256.0,96255.0,0.34551024]
[1740214594644,0.2178172,96256.0,96255.0,0.34551024]
[1740214594854,0.01,96256.0,96255.0,0.34551024]
[1740214595256,0.2178166,96256.0,96255.0,0.34551024]
[1740214596149,0.2078166,96256.0,96255.0,0.34551024]
[1740214596355,0.2178166,96256.0,96255.0,0.34551024]
[1740214596555,0.2078166,96256.0,96255.0,0.34551024]
[1740214597053,0.2178166,96256.0,96255.0,0.34551024]
[1740214597255,0.0996,96257.0,96256.0,0.2078166]
[1740214597453,0.3074144,96257.0,96256.0,0.2078166]
[1740214597649,0.3608,96260.0,96255.0,0.13769144]
[1740214597856,0.3608,96260.0,96259.0,0.2078101]
[1740214598053,0.4604,96260.0,96259.0,0.2078101]
[1740214598449,0.678208,96260.0,96259.0,0.2078101]
[1740214599257,0.680208,96260.0,96259.0,0.2078101]
[1740214601854,0.319408,96260.0,96259.0,0.2078101]
[1740214615660,0.309408,96260.0,96259.0,0.2078101]
[1740214616865,0.002,96260.0,96259.0,0.2078101]
[1740214617669,0.209808,96260.0,96259.0,0.2078101]
[1740214626371,0.3608,96267.0,96256.0,0.0519537]
[1740214626372,0.0519442,96275.0,96256.0,0.01]
[1740214626675,0.09956,96273.0,96267.0,0.3608]
[1740214626876,0.3922,96278.0,96270.0,0.2077864]
[1740214627074,0.0519432,96277.0,96270.0,0.2077864]
[1740214627269,0.3922,96278.0,96270.0,0.2077864]
[1740214627474,0.4127423,96278.0,96270.0,0.2077864]
[1740214627869,0.2077738,96276.0,96270.0,0.2077864]
[1740214628271,0.4127423,96278.0,96270.0,0.2077864]
[1740214628472,0.2077813,96273.0,96270.0,0.2077864]
[1740214628671,0.00415583,96271.0,96270.0,0.2077864]
[1740214629172,0.00515583,96271.0,96270.0,0.2077864]
[1740214629571,0.00915583,96271.0,96270.0,0.2077864]
[1740214630679,0.09956,96288.0,96285.0,0.207754]
[1740214630873,0.09956,96288.0,96285.0,0.568554]
[1740214631181,0.3171021,96288.0,96285.0,0.3608]
[1740214631373,0.3171021,96288.0,96287.0,0.2077497]
[1740214632372,0.3241021,96288.0,96287.0,0.2077497]
[1740214633376,0.3311021,96288.0,96287.0,0.2087497]
[1740214634074,0.5388496,96288.0,96287.0,0.2087497]
[1740214635185,0.3311021,96288.0,96287.0,0.2087497]
[1740214635380,0.11356,96288.0,96287.0,0.2087497]
[1740214636879,0.3213075,96288.0,96287.0,0.2087497]
[1740214637475,0.11356,96288.0,96287.0,0.2087497]
[1740214638476,0.014,96288.0,96287.0,0.2087497]
[1740214639984,0.014,96288.0,96287.0,0.2097497]
[1740214643674,0.00015583,96297.0,96296.0,0.2077303]
[1740214643875,0.00015583,96297.0,96296.0,0.5685303]
[1740214644083,0.00015583,96297.0,96296.0,0.6623303]
[1740214644386,0.82408001,96301.0,96300.0,0.2077217]
[1740214644580,0.82356,96301.0,96300.0,0.2077217]
[1740214645783,0.83056,96301.0,96300.0,0.2087217]
[1740214645990,0.83556,96301.0,96300.0,0.2087217]
[1740214646290,0.83456,96301.0,96300.0,0.2077217]
[1740214646488,0.011,96301.0,96300.0,0.2077217]
[1740214652490,0.2187195,96301.0,96300.0,0.2077217]
[1740214652995,0.011,96301.0,96300.0,0.2077217]
[1740214653291,0.2187195,96301.0,96300.0,0.2077217]
[1740214654485,0.2187195,96301.0,96300.0,0.5685217]
[1740214655485,0.011,96301.0,96300.0,0.5685217]
[1740214658191,0.2187195,96301.0,96300.0,0.5685217]
[1740214658495,0.011,96301.0,96300.0,0.5685217]
[1740214658697,0.2187195,96301.0,96300.0,0.5685217]
[1740214667495,0.2512195,96301.0,96300.0,0.5685217]
[1740214674195,0.0435,96301.0,96296.0,0.0312]
[1740214674391,0.2077281,96297.0,96296.0,0.290853]
[1740214674595,0.2077281,96297.0,96296.0,0.3427848]
[1740214674799,0.2379281,96297.0,96296.0,0.3427848]
[1740214675399,0.2077281,96297.0,96296.0,0.3427848]
[1740214676498,0.2107281,96297.0,96296.0,0.3427848]
[1740214678493,0.051933,96296.0,96290.0,0.3608]
[1740214678699,0.2077411,96291.0,96290.0,0.5685365]
[1740214679096,0.2077411,96291.0,96290.0,0.3608]
[1740214679312,0.2077411,96291.0,96290.0,0.5685432]
[1740214680211,0.2177411,96291.0,96290.0,0.5685432]
[1740214680905,0.2187411,96291.0,96290.0,0.5685432]
[1740214686198,0.011,96291.0,96290.0,0.5685432]
[1740214686398,0.10052,96291.0,96290.0,0.5685432]
[1740214686605,0.001,96291.0,96290.0,0.5685432]
[1740214687111,0.00015583,96310.0,96309.0,0.2077022]
[1740214687511,0.00015583,96310.0,96309.0,0.3005022]
[1740214688211,0.01015583,96310.0,96309.0,0.3005022]
[1740214688714,0.01015583,96310.0,96309.0,0.3015022]
[1740214689103,0.00315583,96310.0,96309.0,0.3025022]
[1740214689304,0.01315583,96310.0,96309.0,0.3025022]
[1740214689712,0.00315583,96310.0,96309.0,0.3025022]
[1740214689915,0.01315583,96310.0,96309.0,0.3025022]
[1740214690115,0.00315583,96310.0,96309.0,0.3025022]
[1740214690615,0.01315583,96310.0,96309.0,0.3025022]
[1740214696316,0.00315583,96310.0,96309.0,0.3025022]
[1740214696617,0.01315583,96310.0,96309.0,0.3025022]
[1740214697114,0.00315583,96310.0,96309.0,0.3025022]
[1740214698418,0.01315583,96310.0,96309.0,0.3025022]
[1740214702918,0.00315583,96310.0,96309.0,0.3025022]
[1740214703216,0.01315583,96310.0,96309.0,0.3025022]
[1740214703410,0.00315583,96310.0,96309.0,0.3025022]
[1740214703605,0.01315583,96310.0,96309.0,0.3025022]
[1740214708607,0.00315583,96310.0,96309.0,0.3025022]
[1740214710117,0.8234,96323.0,96322.0,0.2076742]
[1740214710315,0.82392001,96323.0,96322.0,0.2076742]
[1740214710617,0.8234,96323.0,96322.0,0.3034742]
[1740214710818,0.0311,96338.0,96334.0,0.2076483]
[1740214711112,0.0311,96338.0,96334.0,0.5684483]
[1740214711113,0.13142,96338.0,96334.0,0.5684483]
[1740214711318,0.2275421,96335.0,96334.0,0.6635483]
[1740214712115,0.4351883,96335.0,96334.0,0.6635483]
[1740214712417,0.4351883,96335.0,96334.0,0.6645483]
[1740214712806,0.2176462,96335.0,96334.0,0.6655483]
[1740214718828,0.2176462,96335.0,96334.0,0.3047483]
[1740214719016,0.2176462,96335.0,96334.0,0.6655483]
[1740214719925,0.2176462,96335.0,96334.0,0.3047483]
[1740214720115,0.2176462,96335.0,96334.0,0.6655483]
[1740214720918,0.2176462,96335.0,96334.0,0.002]
[1740214722121,0.01,96335.0,96325.0,0.00015575]
[1740214722319,0.5784656,96326.0,96325.0,0.00015575]
[1740214722525,0.6795856,96326.0,96325.0,0.00015575]
[1740214722728,0.7103856,96326.0,96325.0,0.00015575]
[1740214723327,0.7423856,96326.0,96325.0,0.00115575]
[1740214725118,0.7433856,96326.0,96325.0,0.00115575]
[1740214725322,0.7433856,96326.0,96325.0,0.00215575]
[1740214725323,0.7750856,96326.0,96325.0,0.00215575]
[1740214726227,0.7750856,96326.0,96314.0,0.0015573]
[1740214726228,0.56742,96326.0,96314.0,0.0015573]
[1740214726432,0.2176893,96315.0,96314.0,0.0015573]
[1740214726627,0.3190093,96315.0,96314.0,0.0015573]
[1740214726931,0.3497093,96315.0,96314.0,0.0015573]
[1740214728628,0.3517093,96315.0,96314.0,0.0015573]
[1740214730133,0.3547093,96315.0,96314.0,0.0015573]
[1740214730532,0.3240093,96315.0,96314.0,0.0015573]
[1740214730730,0.3240093,96315.0,96314.0,0.2092488]
[1740214730931,0.3240093,96315.0,96314.0,0.0337573]
[1740214731524,0.2226893,96315.0,96314.0,0.0337573]
[1740214731728,0.3241293,96315.0,96314.0,0.0337573]
[1740214732134,1.1472893,96315.0,96314.0,0.0337573]
[1740214735237,1.1793893,96315.0,96314.0,0.0337573]
[1740214736032,1.1793893,96315.0,96314.0,0.0015573]
[1740214740742,0.2076915,96314.0,96313.0,0.0302]
[1740214740944,0.2176915,96314.0,96313.0,0.0302]
[1740214741742,0.5784915,96314.0,96313.0,0.0302]
[1740214742138,0.5804915,96314.0,96313.0,0.0302]
[1740214743437,0.5824915,96314.0,96313.0,0.0302]
[1740214748751,0.0519243,96312.0,96305.0,0.00015575]
[1740214749041,0.2177087,96306.0,96305.0,0.00015575]
[1740214749246,0.3189487,96306.0,96305.0,0.00015575]
[1740214749748,0.2077324,96295.0,96294.0,0.0314]
[1740214749939,0.3189324,96295.0,96294.0,0.0314]
[1740214750745,0.3189324,96295.0,96285.0,0.18704029]
[1740214750746,0.2077346,96294.0,96285.0,0.18719604]
[1740214751051,0.2177346,96294.0,96286.0,0.0314]
[1740214751843,0.2177346,96294.0,96293.0,0.00255755]
[1740214752345,0.2187346,96294.0,96293.0,0.00155755]
[1740214752537,0.2207346,96294.0,96293.0,0.00155755]
[1740214753049,0.3218546,96294.0,96293.0,0.00155755]
[1740214754740,0.6826546,96294.0,96293.0,0.00155755]
[1740214755145,0.5815346,96294.0,96293.0,0.00155755]
[1740214755353,0.6825746,96294.0,96293.0,0.00155755]
[1740214758947,0.2077475,96288.0,96287.0,0.0329]
[1740214759261,0.2077497,96287.0,96286.0,0.0314]
[1740214759449,0.2508497,96287.0,96286.0,0.0314]
[1740214760047,0.2077519,96286.0,96285.0,0.00015575]
[1740214760253,0.2177519,96286.0,96285.0,0.00015575]
[1740214761559,0.22835657,96286.0,96285.0,0.00015575]
[1740214761747,0.22735657,96286.0,96285.0,0.00015575]
[1740214762447,0.32831657,96286.0,96285.0,0.00015575]
[1740214763458,0.3177119,96286.0,96285.0,0.00115575]
[1740214764865,0.37790784,96286.0,96285.0,0.00115575]
[1740214767455,0.36790784,96286.0,96285.0,0.00115575]
[1740214767858,0.37790784,96286.0,96285.0,0.00115575]
[1740214768064,0.27694784,96286.0,96285.0,0.00115575]
[1740214768364,0.3178319,96286.0,96285.0,0.00115575]
[1740214769364,0.3078319,96286.0,96285.0,0.00115575]
[1740214769663,0.6786319,96286.0,96285.0,0.00115575]
[1740214771460,0.6785519,96286.0,96285.0,0.00115575]
[1740214777563,0.3177519,96286.0,96285.0,0.00115575]
[1740214777867,0.6785519,96286.0,96285.0,0.00115575]
[1740214780666,1.5019919,96286.0,96285.0,0.00115575]
[1740214782763,1.56218791,96286.0,96285.0,0.00115575]
[1740214786175,1.5019919,96286.0,96285.0,0.00115575]
[1740214790174,1.1411919,96286.0,96285.0,0.00115575]
[1740214790489,1.5019919,96286.0,96285.0,0.00115575]
[1740214790779,1.5014719,96286.0,96285.0,0.00115575]
[1740214791167,1.3909919,96286.0,96285.0,0.20890975]
[1740214791369,1.4914719,96286.0,96285.0,0.00115575]
[1740214791895,1.4914719,96286.0,96285.0,0.20890975]
[1740214792272,1.5014719,96286.0,96285.0,0.20890975]
[1740214792666,1.5014719,96286.0,96285.0,0.00115575]
[1740214793181,1.5014319,96286.0,96285.0,0.00115575]
[1740214793772,1.56162669,96286.0,96285.0,0.00115575]
[1740214801179,1.5012719,96286.0,96285.0,0.00115575]
[1740214802389,1.5012719,96286.0,96285.0,0.20890975]
[1740214803184,1.5012719,96286.0,96285.0,0.00115575]
[1740214805996,1.5012719,96286.0,96285.0,0.20890975]
[1740214811998,1.4912719,96286.0,96285.0,0.20890975]
[1740214812193,1.5012719,96286.0,96285.0,0.20890975]
[1740214813792,1.5313719,96286.0,96285.0,0.20890975]
[1740214817393,1.1705719,96286.0,96285.0,0.20890975]
[1740214817703,1.5313719,96286.0,96285.0,0.20890975]
[1740214823803,0.7079319,96286.0,96285.0,0.20890975]
[1740214831004,0.82396001,96292.0,96285.0,0.00115575]
[1740214831207,0.82344,96292.0,96291.0,0.2077411]
[1740214831405,1.0311789,96292.0,96291.0,0.2077411]
[1740214831801,0.82344,96292.0,96291.0,0.2077411]
[1740214832103,0.83344,96292.0,96291.0,0.2077411]
[1740214832307,0.83544,96292.0,96291.0,0.2077411]
[1740214832501,1.0431789,96292.0,96291.0,0.2077411]
[1740214832703,0.82544,96292.0,96291.0,0.2077411]
[1740214832898,1.0331789,96292.0,96291.0,0.2077411]
[1740214833098,1.0431789,96292.0,96291.0,0.2077411]
[1740214833506,1.0441789,96292.0,96291.0,0.2077411]
[1740214834802,1.0746789,96292.0,96291.0,0.2077411]
[1740214848617,1.0646789,96292.0,96291.0,0.2077411]
[1740214848809,1.0746789,96292.0,96291.0,0.2077411]
[1740214850021,1.0646789,96292.0,96291.0,0.2077411]
[1740214857914,1.0636789,96292.0,96291.0,0.2097411]
[1740214859116,1.0616789,96292.0,96291.0,0.2107411]
[1740214862332,0.85394,96292.0,96291.0,0.2107411]
[1740214862823,1.0616789,96292.0,96291.0,0.2107411]
[1740214866816,1.0311789,96292.0,96291.0,0.2107411]
[1740214867018,0.2077389,96292.0,96291.0,0.2107411]
[1740214873629,0.0519321,96297.0,96296.0,0.2596606]
[1740214873823,0.2596602,96297.0,96296.0,0.2596606]
[1740214875435,0.2596602,96297.0,96296.0,0.26994947]
[1740214876934,0.031,96298.0,96297.0,0.2077281]
[1740214877132,0.238726,96298.0,96297.0,0.2077281]
[1740214878032,0.82388001,96303.0,96296.0,0.37108887]
[1740214878333,0.85436,96303.0,96302.0,0.2077173]
[1740214878723,1.0620752,96303.0,96302.0,0.2077173]
[1740214879740,0.85636,96303.0,96302.0,0.2077173]
[1740214880530,1.0660752,96303.0,96302.0,0.2077173]
[1740214881338,0.82736,96303.0,96302.0,0.2077173]
[1740214881741,1.0350752,96303.0,96302.0,0.2077173]
[1740214883640,0.2117152,96303.0,96302.0,0.2077173]
[1740214885645,0.004,96303.0,96302.0,0.2077173]
[1740214886729,1e-08,96304.0,96303.0,0.2077152]
[1740214886931,1e-08,96304.0,96303.0,0.3093552]
[1740214887146,1e-08,96304.0,96303.0,0.3496552]
[1740214888638,1e-08,96304.0,96303.0,0.36264331]
[1740214888839,0.00100001,96304.0,96303.0,0.36264331]
[1740214890446,0.00100001,96304.0,96303.0,0.36264324]
[1740214890647,0.00100001,96304.0,96303.0,0.3496552]
[1740214891948,0.2076894,96315.0,96314.0,0.2076893]
[1740214892135,0.2076894,96315.0,96314.0,0.5684893]
[1740214892544,1.03156761,96316.0,96315.0,0.2076893]
[1740214892743,0.82332,96316.0,96315.0,0.2076893]
[1740214893043,0.82332,96316.0,96315.0,0.21825232]
[1740214893851,0.82432,96316.0,96315.0,0.21925232]
[1740214897149,0.83432,96316.0,96315.0,0.21925232]
[1740214897342,0.82432,96316.0,96315.0,0.21925232]
[1740214897543,0.83432,96316.0,96315.0,0.21925232]
[1740214898456,0.001,96316.0,96315.0,0.58005232]
[1740214898648,0.00015575,96325.0,96318.0,0.0519202]
[1740214898949,1e-08,96325.0,96324.0,0.5684699]
[1740214899256,0.01000001,96325.0,96324.0,0.7663499]
[1740214900557,0.01000001,96325.0,96324.0,0.7673499]
[1740214901056,0.01000001,96325.0,96324.0,0.7683499]
[1740214903453,0.01000001,96325.0,96324.0,1.1291499]
[1740214907951,1e-08,96325.0,96324.0,1.1291499]
[1740214912957,1e-08,96325.0,96324.0,1.1287499]
[1740214914557,1e-08,96325.0,96324.0,1.0274699]
[1740214914859,1e-08,96325.0,96324.0,1.1287499]
[1740214922371,1e-08,96325.0,96324.0,1.1387499]
[1740214923368,1e-08,96325.0,96324.0,1.1367499]
[1740214923667,1e-08,96325.0,96324.0,1.1387499]
[1740214929869,1e-08,96325.0,96324.0,1.45067662]
[1740214932862,1e-08,96325.0,96324.0,1.3583499]
[1740214933072,0.0631,96353.0,96352.0,0.2076095]
[1740214933374,0.0631,96353.0,96352.0,0.5684095]
[1740214934281,0.0631,96353.0,96352.0,0.57970995]
[1740214934690,0.0631,96353.0,96352.0,0.58070995]
[1740214935384,0.0631,96353.0,96352.0,0.5704095]
[1740214936083,0.2707074,96353.0,96352.0,0.3628]
[1740214936291,0.3721874,96353.0,96352.0,0.3628]
[1740214937196,0.16458,96353.0,96352.0,0.5704095]
[1740214937388,0.0631,96353.0,96352.0,0.5704095]
[1740214937589,0.16458,96353.0,96352.0,0.5704095]
[1740214938003,0.16454,96353.0,96352.0,0.5704095]
[1740214938290,0.3721474,96353.0,96352.0,0.3628]
[1740214938688,0.3721474,96353.0,96352.0,0.5704095]
[1740214939889,0.16454,96353.0,96352.0,0.5704095]
[1740214940091,0.3721474,96353.0,96352.0,0.5704095]
[1740214940498,0.50854678,96353.0,96352.0,0.5704095]
[1740214944697,0.3721474,96353.0,96352.0,0.5704095]
[1740214945301,0.3721474,96353.0,96352.0,0.3628]
[1740214945496,0.0631,96353.0,96352.0,0.5704095]
[1740214946194,0.2707074,96353.0,96352.0,0.5704095]
[1740214946397,0.2707074,96353.0,96352.0,0.3628]
[1740214949308,0.3720674,96353.0,96352.0,0.3628]
[1740214952098,0.7328674,96353.0,96352.0,0.002]
[1740214953398,0.3720674,96353.0,96352.0,0.002]
[1740214953598,0.7328674,96353.0,96352.0,0.002]
[1740214961504,0.44832565,96353.0,96352.0,0.002]
[1740214961706,0.80912565,96353.0,96352.0,0.002]
[1740214964303,0.7328674,96353.0,96352.0,0.002]
[1740214965799,0.6315074,96353.0,96352.0,0.002]
[1740214966004,0.7324674,96353.0,96352.0,0.002]
[1740214967007,1.5553874,96353.0,96352.0,0.002]
[1740214967512,1.5233874,96353.0,96352.0,0.002]
[1740214968905,0.5190247,96352.0,96328.0,0.00264098]
[1740214969110,0.207644,96336.0,96333.0,0.032]
[1740214969305,0.308804,96336.0,96333.0,0.032]
[1740214969504,0.339804,96336.0,96333.0,0.032]
[1740214971317,0.339804,96336.0,96335.0,0.14429903]
[1740214971619,0.2076483,96334.0,96333.0,0.032]
[1740214972810,0.2086483,96334.0,96333.0,0.032]
[1740214973211,0.2106483,96334.0,96333.0,0.032]
[1740214974719,0.22127464,96334.0,96333.0,0.032]
[1740214974917,0.22127464,96334.0,96326.0,0.00015575]
[1740214974918,0.31362634,96334.0,96326.0,0.00015575]
[1740214975115,0.2076721,96323.0,96322.0,0.0309]
[1740214975315,1.1316721,96323.0,96322.0,0.0309]
[1740214975511,1.1316721,96323.0,96315.0,0.062]
[1740214975512,0.986,96323.0,96315.0,0.062]
[1740214975711,0.2076871,96316.0,96315.0,0.062]
[1740214976820,0.2066871,96316.0,96315.0,0.062]
[1740214977319,0.3081671,96316.0,96315.0,0.065]
[1740214978617,0.3081671,96316.0,96315.0,0.069]
[1740214979211,0.10148,96316.0,96313.0,0.01674]
[1740214979416,0.2077044,96308.0,96307.0,0.00155756]
[1740214980416,0.2027044,96308.0,96307.0,0.03315756]
[1740214981025,0.2057044,96308.0,96307.0,0.03315756]
[1740214981925,0.2097044,96308.0,96307.0,0.03315756]
[1740214983127,0.2197044,96308.0,96307.0,0.03315756]
[1740214983529,0.22991826,96308.0,96307.0,0.03315756]
[1740214983922,0.23091826,96308.0,96307.0,0.03315756]
[1740214985233,0.2207044,96308.0,96307.0,0.03315756]
[1740214987727,0.0699261,96308.0,96296.0,0.0324]
[1740214988030,0.2177281,96297.0,96296.0,0.0324]
[1740214988225,0.3190481,96297.0,96296.0,0.0324]
[1740214988429,0.3515481,96297.0,96296.0,0.0324]
[1740214990624,0.2077475,96288.0,96287.0,0.00015575]
[1740214990832,0.3190275,96288.0,96287.0,0.00015575]
[1740214991622,0.11128,96288.0,96287.0,0.00015575]
[1740214992029,0.11128,96288.0,96287.0,0.27390545]
[1740214992226,0.11128,96288.0,96287.0,0.06615575]
[1740214992833,0.11128,96288.0,96287.0,0.06915575]
[1740214993135,0.11128,96288.0,96287.0,0.27690545]
[1740214994526,0.3190275,96288.0,96287.0,0.06915575]
[1740214994725,0.11128,96288.0,96287.0,0.06915575]
[1740214994925,0.11128,96288.0,96287.0,0.27690545]
[1740214999541,0.10128,96288.0,96287.0,0.27690545]
[1740214999735,0.3190275,96288.0,96287.0,0.27690545]
[1740214999931,0.11128,96288.0,96287.0,0.27690545]
[1740215000734,0.3190275,96288.0,96287.0,0.00615575]
[1740215001143,0.2077691,96278.0,96277.0,0.0611]
[1740215001438,0.3192891,96278.0,96277.0,0.0611]
[1740215001830,0.3172891,96278.0,96277.0,0.0611]
[1740215002638,0.3172891,96278.0,96277.0,0.0651]
[1740215002940,0.3152891,96278.0,96277.0,0.0651]
[1740215003335,0.3152891,96278.0,96277.0,0.0681]
[1740215007138,0.3152891,96278.0,96277.0,0.08434231]
[1740215007642,0.3152891,96278.0,96277.0,0.10058462]
[1740215007841,0.3152891,96278.0,96277.0,0.08434231]
[1740215008141,0.3152891,96278.0,96277.0,0.02324231]
[1740215008349,0.2077864,96270.0,96262.0,0.0634]
[1740215008640,0.5785864,96270.0,96262.0,0.0634]
[1740215009347,0.5785864,96270.0,96255.0,0.3608]
[1740215009545,0.5785864,96270.0,96269.0,0.005]
[1740215010344,0.2078101,96259.0,96258.0,0.09971849]
[1740215010645,1.5018501,96259.0,96258.0,0.09971849]
[1740215010942,1.5966501,96259.0,96258.0,0.09971849]
[1740215012054,1.5966501,96259.0,96249.0,0.00171397]
[1740215012055,0.2078296,96250.0,96249.0,0.00171397]
[1740215012347,0.6804296,96250.0,96249.0,0.00171397]
[1740215013344,0.6704296,96250.0,96249.0,0.00015583]
[1740215013539,0.3608,96250.0,96249.0,0.00015583]
[1740215013745,0.82404001,96259.0,96258.0,0.2078123]
[1740215013942,0.92524,96259.0,96258.0,0.5686123]
[1740215014247,0.82344,96259.0,96258.0,0.5686123]
[1740215014436,0.82344,96259.0,96258.0,0.6325123]
[1740215014635,0.3608,96278.0,96258.0,0.4247]
[1740215014839,0.0519,96270.0,96269.0,0.2077885]
[1740215015038,0.01,96270.0,96269.0,0.0323]
[1740215015244,0.01,96270.0,96269.0,0.2400885]
[1740215015848,0.013,96270.0,96269.0,0.0323]
[1740215016045,0.2237864,96270.0,96269.0,0.0323]
[1740215017038,0.3255064,96270.0,96269.0,0.0323]
[1740215017745,0.6863064,96270.0,96269.0,0.0323]
[1740215017947,0.2078101,96259.0,96258.0,0.4247]
[1740215018144,0.2178101,96259.0,96258.0,0.6325123]
[1740215018345,0.2178101,96259.0,96258.0,0.3608]
[1740215018545,0.2078296,96250.0,96249.0,0.00015583]